bitfinex/quotes_BTCUSD_20240623
["timestamp","ask_amount","ask_price","bid_price","bid_amount"]
[1719162881459,9.02349138,64078.0,64077.0,5.5959223]
[1719162881664,9.02349138,64078.0,64077.0,5.11147683]
[1719162881824,9.02349138,64078.0,64077.0,5.5959223]
[1719162882025,9.02349138,64078.0,64077.0,5.11147683]
[1719162882225,9.02349138,64078.0,64077.0,5.5959223]
[1719162882427,9.02349138,64078.0,64077.0,5.11147683]
[1719162882629,9.02349138,64078.0,64077.0,5.5959223]
[1719162882846,9.02349138,64078.0,64077.0,5.11147683]
[1719162883077,9.02349138,64078.0,64077.0,4.70065142]
[1719162883276,9.02349138,64078.0,64077.0,5.59593214]
[1719162883521,8.94503138,64078.0,64077.0,5.59593214]
[1719162885274,8.93019138,64078.0,64077.0,5.59593214]
[1719162885712,8.93019138,64078.0,64077.0,5.69593214]
[1719162886288,8.93019138,64078.0,64077.0,5.69588701]
[1719162886729,8.93019138,64078.0,64077.0,5.69588639]
[1719162886858,8.86564138,64078.0,64077.0,5.69588639]
[1719162887732,8.86564138,64078.0,64077.0,5.5015195]
[1719162888051,8.86564138,64078.0,64077.0,5.69589325]
[1719162889365,8.86564138,64078.0,64077.0,5.69589297]
[1719162889683,8.75138008,64078.0,64077.0,5.69589297]
[1719162889864,8.71493008,64078.0,64077.0,6.08349297]
[1719162890410,8.64108008,64078.0,64077.0,6.08349297]
[1719162890607,8.59553949,64078.0,64077.0,6.08349297]
[1719162890820,8.36264672,64078.0,64077.0,6.08349297]
[1719162891018,7.84087243,64078.0,64077.0,6.25933723]
[1719162891218,7.7981496,64078.0,64077.0,6.25933723]
[1719162891887,7.7981496,64078.0,64077.0,7.03964823]
[1719162892177,7.7981496,64078.0,64077.0,6.19519418]
[1719162892512,7.60289597,64078.0,64077.0,7.18350684]
[1719162892926,7.60289597,64078.0,64077.0,7.14500684]
[1719162893072,7.42841194,64078.0,64077.0,7.03951975]
[1719162893334,7.34680374,64078.0,64077.0,7.03951975]
[1719162893920,7.34680374,64078.0,64077.0,7.19750684]
[1719162894267,7.34680374,64078.0,64077.0,7.03951975]
[1719162895160,7.34680374,64078.0,64077.0,6.03334062]
[1719162895298,7.34680374,64078.0,64077.0,7.04390511]
[1719162895499,7.34680374,64078.0,64077.0,6.86365376]
[1719162895721,7.34680374,64078.0,64077.0,7.04378957]
[1719162895930,7.34680374,64078.0,64077.0,6.73409028]
[1719162896117,7.34680374,64078.0,64077.0,7.04378957]
[1719162896316,7.34680374,64078.0,64077.0,6.86365375]
[1719162896525,7.34680374,64078.0,64077.0,7.04378957]
[1719162896991,7.34680374,64078.0,64077.0,7.0438448]
[1719162897143,7.34680374,64078.0,64077.0,6.86364567]
[1719162898321,7.34680374,64078.0,64077.0,7.17574567]
[1719162898533,7.30180374,64078.0,64077.0,8.83225867]
[1719162898741,7.25080374,64078.0,64077.0,8.81838151]
[1719162898938,7.25080374,64078.0,64077.0,8.99851656]
[1719162899752,7.25080374,64078.0,64077.0,8.98451656]
[1719162900087,7.25080374,64078.0,64077.0,8.97151656]
[1719162900911,7.25080374,64078.0,64077.0,8.98551656]
[1719162901116,7.21558586,64078.0,64077.0,8.98463407]
[1719162901321,7.14008523,64078.0,64077.0,8.98463407]
[1719162901877,7.13632364,64078.0,64077.0,8.99863407]
[1719162903519,7.13632364,64078.0,64077.0,8.94613407]
[1719162903674,7.13632364,64078.0,64077.0,8.98463407]
[1719162903874,7.13632364,64078.0,64077.0,8.8552924]
[1719162904075,7.13632364,64078.0,64077.0,8.98485288]
[1719162904433,7.13632364,64078.0,64077.0,8.99885314]
[1719162905499,7.13632364,64078.0,64077.0,8.99928448]
[1719162906983,7.13632364,64078.0,64077.0,7.98805711]
[1719162907190,7.13632364,64078.0,64077.0,8.99920336]
[1719162907474,7.1316353,64078.0,64077.0,8.99920336]
[1719162908051,7.1316353,64078.0,64077.0,8.98520336]
[1719162908350,7.0156353,64078.0,64077.0,8.97120336]
[1719162909244,7.0156353,64078.0,64077.0,8.98520336]
[1719162909391,7.0156353,64078.0,64077.0,8.98031326]
[1719162909805,7.0156353,64078.0,64077.0,7.98833918]
[1719162910001,7.0156353,64078.0,64077.0,8.98060447]
[1719162910859,7.0156353,64078.0,64077.0,8.99460447]
[1719162911378,7.0156353,64078.0,64077.0,8.98060447]
[1719162911680,7.0156353,64078.0,64077.0,8.96660447]
[1719162912822,7.0156353,64078.0,64077.0,7.66365674]
[1719162913025,7.0156353,64078.0,64077.0,8.90239916]
[1719162913279,7.0156353,64078.0,64077.0,8.96659546]
[1719162913896,7.0156353,64078.0,64077.0,8.57877281]
[1719162914458,7.0156353,64078.0,64077.0,8.57881484]
[1719162915973,7.0156353,64078.0,64077.0,8.39768124]
[1719162916175,7.0156353,64078.0,64077.0,8.57821985]
[1719162919021,7.0156353,64078.0,64077.0,8.39766684]
[1719162919235,7.0076363,64078.0,64077.0,8.57820168]
[1719162919435,7.0076363,64078.0,64077.0,8.96602433]
[1719162919637,7.0056363,64078.0,64077.0,8.96602433]
[1719162919822,6.8986363,64078.0,64077.0,8.96602433]
[1719162922031,6.8986363,64078.0,64077.0,7.97387936]
[1719162922227,6.8986363,64078.0,64077.0,8.78551115]
[1719162922438,6.8986363,64078.0,64077.0,7.66074933]
[1719162922639,6.8986363,64078.0,64077.0,8.9019795]
[1719162922863,6.8986363,64078.0,64077.0,8.96326839]
[1719162923422,6.7806363,64078.0,64077.0,8.96326839]
[1719162924525,6.78028218,64078.0,64077.0,8.96326839]
[1719162924946,6.78028218,64078.0,64077.0,8.00672412]
[1719162925160,6.78028218,64078.0,64077.0,8.96333724]
[1719162927949,6.78028218,64078.0,64077.0,7.72553144]
[1719162928152,6.7727039,64078.0,64077.0,8.9022701]
[1719162928372,6.7727039,64078.0,64077.0,8.96355899]
[1719162928585,6.74085459,64078.0,64077.0,8.65145899]
[1719162928781,6.73057462,64078.0,64077.0,8.65145899]
[1719162928978,6.72498233,64078.0,64077.0,8.65145899]
[1719162930940,6.72029637,64078.0,64077.0,7.34864933]
[1719162931129,6.72029637,64078.0,64077.0,8.77135887]
[1719162931335,6.72029637,64078.0,64077.0,8.78014776]
[1719162931539,6.72029637,64078.0,64077.0,8.83266121]
[1719162933522,6.72029637,64078.0,64077.0,9.14476121]
[1719162933700,6.46217165,64078.0,64077.0,9.14476121]
[1719162933947,6.46217165,64078.0,64077.0,7.84184016]
[1719162934260,6.46217165,64078.0,64077.0,9.08359735]
[1719162934495,6.31516765,64078.0,64077.0,9.14488624]
[1719162935116,6.31516765,64078.0,64077.0,8.36732468]
[1719162936681,6.27216765,64078.0,64077.0,8.36732468]
[1719162937033,6.27216765,64078.0,64077.0,7.0642786]
[1719162937245,6.27216765,64078.0,64077.0,8.30599958]
[1719162937443,6.27216765,64078.0,64077.0,8.36728847]
[1719162937961,6.26829054,64078.0,64077.0,8.36728847]
[1719162939361,5.3927815,64078.0,64077.0,8.35152214]
[1719162939704,4.30857331,64078.0,64077.0,8.21472735]
[1719162939876,3.83711607,64078.0,64077.0,7.90372735]
[1719162940146,3.75521032,64078.0,64077.0,6.94664891]
[1719162940345,3.75521032,64078.0,64077.0,8.35895668]
[1719162940346,3.48999978,64078.0,64077.0,8.35895668]
[1719162940555,3.45915006,64078.0,64077.0,7.29852636]
[1719162940742,3.45915006,64078.0,64077.0,8.35895446]
[1719162940953,3.45915006,64078.0,64077.0,8.42024335]
[1719162941684,3.45215006,64078.0,64077.0,8.42043901]
[1719162941888,3.36315006,64078.0,64077.0,7.64387745]
[1719162942189,3.17205006,64078.0,64077.0,7.58258856]
[1719162942413,3.16550994,64078.0,64077.0,7.58358856]
[1719162942731,3.12350994,64078.0,64077.0,7.58358856]
[1719162942937,2.85750994,64078.0,64077.0,7.58358856]
[1719162943244,2.85750994,64078.0,64077.0,7.58355179]
[1719162943438,2.82333294,64078.0,64077.0,7.58355179]
[1719162943806,2.74920733,64078.0,64077.0,7.58355179]
[1719162944233,2.74452192,64078.0,64077.0,7.58355179]
[1719162944433,2.74452192,64078.0,64077.0,7.58255179]
[1719162944648,2.69452192,64078.0,64077.0,7.58355179]
[1719162944855,2.64150692,64078.0,64077.0,7.58355179]
[1719162945024,2.57750692,64078.0,64077.0,7.58355179]
[1719162945230,2.33172069,64078.0,64077.0,7.58255179]
[1719162945627,2.30272069,64078.0,64077.0,7.58255179]
[1719162948661,1.87227899,64078.0,64077.0,7.40244762]
[1719162948925,1.78427899,64078.0,64077.0,7.40244762]
[1719162949129,1.78427899,64078.0,64077.0,6.09946529]
[1719162949343,1.78427899,64078.0,64077.0,7.40243583]
[1719162949637,1.62109899,64078.0,64077.0,6.44267742]
[1719162949844,1.53758899,64078.0,64077.0,8.53526422]
[1719162950060,1.53758899,64078.0,64077.0,7.46373046]
[1719162950223,1.53053993,64078.0,64077.0,7.40244157]
[1719162950428,1.47053993,64078.0,64077.0,7.40244157]
[1719162950624,1.44053993,64078.0,64077.0,7.40144157]
[1719162950830,1.31811693,64078.0,64077.0,7.4014421]
[1719162951027,1.18209393,64078.0,64077.0,7.4004421]
[1719162951201,1.11090278,64078.0,64077.0,7.4004421]
[1719162951399,1.11090278,64078.0,64077.0,7.4014421]
[1719162951620,1.01727278,64078.0,64077.0,7.4004421]
[1719162952006,0.91311578,64078.0,64077.0,7.4014421]
[1719162952333,0.0085,64083.0,64077.0,7.4014421]
[1719162952334,4.11783699,64087.0,64086.0,3.45363]
[1719162952536,3.88951351,64087.0,64086.0,8.79668253]
[1719162952736,3.85673734,64087.0,64086.0,10.27140344]
[1719162952941,3.85673734,64087.0,64086.0,10.36856084]
[1719162953148,3.85673734,64087.0,64086.0,11.09625519]
[1719162953416,3.85673734,64087.0,64086.0,11.14875519]
[1719162953860,3.79073734,64087.0,64086.0,11.46784774]
[1719162954770,3.79073734,64087.0,64086.0,11.46884774]
[1719162955194,3.79073734,64087.0,64086.0,11.19605539]
[1719162955375,3.79073734,64087.0,64086.0,11.31183555]
[1719162955612,3.65342734,64087.0,64086.0,11.31183555]
[1719162955777,3.64554715,64087.0,64086.0,11.46971987]
[1719162955979,3.6534137,64087.0,64086.0,11.46987524]
[1719162956183,3.6534137,64087.0,64086.0,9.96370262]
[1719162956387,3.6534137,64087.0,64086.0,11.46612972]
[1719162956602,3.6534137,64087.0,64086.0,11.46712972]
[1719162957033,1.80421691,64087.0,64086.0,12.43778391]
[1719162957236,0.88098315,64087.0,64086.0,13.62719604]
[1719162957477,0.7949766,64087.0,64086.0,13.11815311]
[1719162957622,0.5608116,64087.0,64086.0,12.30317942]
[1719162957821,0.4826716,64087.0,64086.0,12.30217942]
[1719162958001,0.3605316,64087.0,64086.0,12.30217942]
[1719162958201,0.20041453,64087.0,64086.0,12.30317942]
[1719162958403,0.12227453,64087.0,64086.0,12.30393488]
[1719162958606,0.484,64103.0,64102.0,2.205115]
[1719162958810,0.3904,64103.0,64102.0,4.35876811]
[1719162959014,0.3904,64103.0,64102.0,6.10998351]
[1719162959311,0.3904,64103.0,64102.0,6.24028406]
[1719162959519,0.3592,64103.0,64102.0,6.51833722]
[1719162959720,0.51854476,64125.0,64119.0,2.60364]
[1719162960007,0.51854476,64125.0,64119.0,3.16923419]
[1719162960207,0.1644,64147.0,64119.0,3.43111519]
[1719162960479,0.0525,64126.0,64119.0,3.43111519]
[1719162960686,0.0525,64126.0,64119.0,3.43127056]
[1719162960900,0.01966443,64145.0,64119.0,3.59116316]
[1719162961096,0.0525,64128.0,64119.0,4.01448641]
[1719162961487,0.0525,64128.0,64119.0,4.13124932]
[1719162961707,0.0525,64128.0,64119.0,4.01448641]
[1719162961890,0.0525,64128.0,64119.0,4.01448628]
[1719162962112,0.0525,64128.0,64119.0,4.02848628]
[1719162962313,0.0525,64125.0,64119.0,4.12184014]
[1719162962710,0.4925,64120.0,64119.0,4.04248628]
[1719162962915,0.4925,64120.0,64119.0,4.1398684]
[1719162963561,0.4925,64120.0,64119.0,4.20987072]
[1719162963740,0.4925,64120.0,64119.0,3.86405326]
[1719162963913,0.4925,64120.0,64119.0,3.50989755]
[1719162964318,0.4925,64120.0,64119.0,3.09405094]
[1719162965374,0.4925,64120.0,64119.0,3.16405326]
[1719162966228,0.4925,64120.0,64119.0,2.58213094]
[1719162966434,0.4925,64120.0,64119.0,2.49437308]
[1719162966670,0.4925,64120.0,64119.0,2.36485736]
[1719162966873,0.4925,64120.0,64119.0,2.4943794]
[1719162967079,0.4925,64120.0,64119.0,2.56485736]
[1719162967228,0.4925,64120.0,64119.0,2.49438208]
[1719162967441,0.4925,64120.0,64119.0,2.36485736]
[1719162967845,0.4925,64120.0,64119.0,2.42729736]
[1719162968045,0.4925,64120.0,64119.0,2.45029736]
[1719162968247,0.4925,64120.0,64119.0,3.09174445]
[1719162968454,0.4925,64120.0,64119.0,3.20315501]
[1719162968701,0.4925,64120.0,64119.0,3.53366366]
[1719162968901,0.23834256,64120.0,64119.0,3.53366366]
[1719162969177,0.23834256,64120.0,64119.0,3.62693992]
[1719162969287,0.23834256,64120.0,64119.0,4.31293992]
[1719162969698,0.23834256,64120.0,64119.0,4.32687994]
[1719162970101,0.23834256,64120.0,64119.0,4.21961791]
[1719162971173,0.23834256,64120.0,64119.0,4.20561791]
[1719162971563,0.23834256,64120.0,64119.0,4.23361791]
[1719162972219,0.23834256,64120.0,64119.0,4.21961791]
[1719162972422,0.23834256,64120.0,64119.0,4.23361789]
[1719162972620,0.23834256,64120.0,64119.0,4.03935726]
[1719162972836,0.23834256,64120.0,64119.0,4.30354104]
[1719162973045,0.23834256,64120.0,64119.0,4.23361714]
[1719162973618,0.23834256,64120.0,64119.0,4.30353666]
[1719162974368,0.23834256,64120.0,64119.0,4.61545666]
[1719162974789,0.22315554,64120.0,64119.0,4.61545666]
[1719162975570,0.22315554,64120.0,64119.0,4.42119282]
[1719162975776,0.22315554,64120.0,64119.0,4.61545318]
[1719162975974,0.22315554,64120.0,64119.0,4.00545734]
[1719162976268,0.22315554,64120.0,64119.0,4.26963419]
[1719162977370,0.22315554,64120.0,64119.0,4.14012763]
[1719162977506,0.22315554,64120.0,64119.0,4.26963542]
[1719162977707,0.22400554,64120.0,64119.0,4.26963542]
[1719162978810,0.0085,64122.0,64121.0,2.166825]
[1719162979011,0.0085,64122.0,64121.0,3.02936297]
[1719162979217,0.0085,64122.0,64121.0,2.98245127]
[1719162979418,0.0085,64122.0,64121.0,2.98260649]
[1719162979838,0.0085,64122.0,64121.0,3.05251667]
[1719162980058,0.0085,64122.0,64121.0,3.06651667]
[1719162980416,0.0085,64122.0,64121.0,3.76651799]
[1719162980764,0.0085,64122.0,64121.0,3.69660649]
[1719162981181,0.0085,64122.0,64121.0,3.76651841]
[1719162981539,0.0085,64122.0,64121.0,3.28604802]
[1719162981740,0.0085,64122.0,64121.0,3.78050768]
[1719162982207,0.0085,64122.0,64121.0,3.76650768]
[1719162982413,0.0085,64122.0,64121.0,3.68259287]
[1719162982612,0.0085,64122.0,64121.0,3.80854812]
[1719162982753,0.148,64129.0,64128.0,1.23132]
[1719162982956,0.148,64129.0,64128.0,3.15782083]
[1719162983155,0.148,64129.0,64128.0,3.22743108]
[1719162983356,0.148,64129.0,64128.0,3.22742897]
[1719162983882,0.148,64129.0,64128.0,4.11660405]
[1719162984766,0.148,64129.0,64128.0,4.05184326]
[1719162984894,0.148,64129.0,64128.0,4.11658772]
[1719162985092,0.148,64129.0,64128.0,3.9870988]
[1719162985547,0.148,64129.0,64128.0,4.13058772]
[1719162985751,0.0085,64143.0,64142.0,1.823136]
[1719162985907,0.0085,64143.0,64142.0,2.26018604]
[1719162986108,0.0085,64143.0,64142.0,2.32492378]
[1719162986315,0.3229,64143.0,64142.0,2.27577311]
[1719162986537,0.3229,64143.0,64142.0,2.34066688]
[1719162987222,0.3229,64143.0,64142.0,1.82285888]
[1719162987434,0.3229,64143.0,64142.0,1.30783631]
[1719162987995,0.3229,64143.0,64142.0,1.29383631]
[1719162988265,0.3229,64143.0,64142.0,1.30783631]
[1719162988501,0.3229,64143.0,64142.0,1.32183631]
[1719162989115,0.3229,64143.0,64142.0,1.63364431]
[1719162989241,0.3754,64143.0,64142.0,1.82564431]
[1719162989458,0.3229,64143.0,64142.0,1.96412425]
[1719162989663,0.3229,64143.0,64142.0,2.28993225]
[1719162990274,0.3229,64143.0,64142.0,2.35467081]
[1719162990671,0.3229,64143.0,64142.0,2.35466572]
[1719162990957,0.3229,64143.0,64142.0,2.34066572]
[1719162991157,0.3229,64143.0,64142.0,2.35466572]
[1719162991342,0.3229,64143.0,64142.0,2.36866572]
[1719162991579,0.3229,64143.0,64142.0,2.35466572]
[1719162992119,0.3229,64143.0,64142.0,2.36866572]
[1719162992557,0.3229,64143.0,64142.0,2.34066572]
[1719162992965,0.3229,64143.0,64142.0,2.36866572]
[1719162993606,0.3229,64143.0,64142.0,2.17445225]
[1719162993823,0.3229,64143.0,64142.0,2.38264813]
[1719162994025,0.3229,64143.0,64142.0,2.36864813]
[1719162994230,0.3229,64143.0,64142.0,2.35464813]
[1719162994430,0.0085,64143.0,64142.0,2.36864813]
[1719162994723,0.0085,64143.0,64142.0,2.38264813]
[1719162995547,0.0085,64143.0,64142.0,2.36864813]
[1719162995911,0.0085,64143.0,64142.0,3.08264813]
[1719162996734,0.0085,64143.0,64142.0,3.05464813]
[1719162996948,0.0085,64143.0,64142.0,3.06864813]
[1719162997310,0.0085,64143.0,64142.0,2.36864813]
[1719162998004,0.0085,64143.0,64142.0,2.37407202]
[1719162998866,0.0085,64143.0,64142.0,2.38807202]
[1719162999037,0.0085,64143.0,64142.0,3.08807202]
[1719162999580,0.0085,64143.0,64142.0,2.89387614]
[1719162999780,0.0085,64143.0,64142.0,3.08807116]
[1719163002416,0.0085,64143.0,64142.0,3.13465979]
[1719163002648,0.0085,64143.0,64142.0,2.89387614]
[1719163002825,0.0085,64143.0,64142.0,3.13468043]
[1719163003029,0.0085,64143.0,64142.0,3.46318043]
[1719163003252,0.0085,64143.0,64142.0,3.463181]
[1719163004725,0.0085,64143.0,64142.0,3.449181]
[1719163004943,0.0085,64143.0,64142.0,3.463181]
[1719163005148,0.0085,64143.0,64142.0,3.774989]
[1719163005783,0.0085,64143.0,64142.0,3.82340187]
[1719163006188,0.0085,64143.0,64142.0,3.83740187]
[1719163007172,0.0085,64143.0,64142.0,3.79079237]
[1719163008402,0.0085,64143.0,64142.0,3.83740187]
[1719163008836,0.0085,64143.0,64142.0,3.83740034]
[1719163009061,0.0085,64143.0,64142.0,3.86872034]
[1719163009824,0.0085,64143.0,64142.0,3.82211195]
[1719163010050,0.0085,64143.0,64142.0,3.80811195]
[1719163010253,0.0085,64143.0,64142.0,3.82211195]
[1719163010990,0.0085,64143.0,64142.0,3.83611195]
[1719163011246,0.0085,64143.0,64142.0,3.88272207]
[1719163011458,0.0085,64143.0,64142.0,3.83611195]
[1719163011667,0.0085,64143.0,64142.0,3.82211195]
[1719163012047,0.0085,64143.0,64142.0,3.80811195]
[1719163012280,0.0085,64143.0,64142.0,3.88915296]
[1719163012440,0.0085,64143.0,64142.0,3.90315296]
[1719163012644,0.0085,64143.0,64142.0,3.97307063]
[1719163012895,0.0085,64143.0,64142.0,4.31876773]
[1719163013329,0.0085,64143.0,64142.0,4.30476773]
[1719163013510,1e-06,64143.0,64142.0,4.36080818]
[1719163013649,1e-06,64143.0,64142.0,4.26757785]
[1719163013851,1e-06,64143.0,64142.0,4.34680818]
[1719163014080,1e-06,64143.0,64142.0,4.93521618]
[1719163014296,1e-06,64143.0,64142.0,4.93979382]
[1719163014496,1e-06,64143.0,64142.0,4.93515879]
[1719163014725,0.0085,64152.0,64151.0,2.602938]
[1719163014937,0.0085,64152.0,64151.0,3.39628033]
[1719163015513,0.0085,64152.0,64151.0,3.70804433]
[1719163015725,0.0085,64152.0,64151.0,4.45467099]
[1719163015923,0.0085,64152.0,64151.0,4.47798432]
[1719163016099,0.0085,64152.0,64151.0,4.82363031]
[1719163016300,0.0085,64152.0,64151.0,4.21386312]
[1719163016560,0.0085,64152.0,64151.0,4.50943909]
[1719163016769,0.0085,64152.0,64151.0,4.52343909]
[1719163016910,0.0085,64152.0,64151.0,4.8690843]
[1719163017114,0.0085,64152.0,64151.0,4.48889373]
[1719163017502,0.0085,64152.0,64151.0,4.50289373]
[1719163017669,0.0085,64152.0,64151.0,4.51689373]
[1719163017908,0.0085,64152.0,64151.0,3.99913085]
[1719163018087,0.0085,64152.0,64151.0,4.19052484]
[1719163018497,0.0085,64152.0,64151.0,4.17652484]
[1719163018708,0.0085,64152.0,64151.0,4.12990478]
[1719163018863,0.0085,64152.0,64151.0,4.14390478]
[1719163019669,0.0085,64152.0,64151.0,4.19052652]
[1719163020701,0.1565,64152.0,64151.0,3.73610283]
[1719163020912,0.1565,64152.0,64151.0,3.80082717]
[1719163020913,0.3852,64152.0,64151.0,3.80082717]
[1719163021142,0.3852,64152.0,64151.0,3.73610283]
[1719163021298,0.3852,64152.0,64151.0,3.80082787]
[1719163021555,0.3852,64152.0,64151.0,3.84745614]
[1719163021711,0.3852,64152.0,64151.0,3.80082787]
[1719163021913,0.3852,64152.0,64151.0,3.10082787]
[1719163022114,0.3852,64152.0,64151.0,3.1474596]
[1719163022344,0.3852,64152.0,64151.0,3.10082656]
[1719163023135,0.3852,64152.0,64151.0,2.97137807]
[1719163023342,0.0085,64152.0,64151.0,3.10082591]
[1719163023681,0.0085,64152.0,64151.0,3.53976135]
[1719163024221,0.0085,64152.0,64151.0,4.23976135]
[1719163024447,0.0085,64152.0,64151.0,4.14648704]
[1719163024647,0.0085,64152.0,64151.0,4.25930329]
[1719163024857,0.0085,64152.0,64151.0,4.16600715]
[1719163025443,0.0085,64152.0,64151.0,4.19723715]
[1719163026043,0.0085,64152.0,64151.0,4.00305137]
[1719163026248,0.0085,64152.0,64151.0,4.19721419]
[1719163026737,0.0085,64152.0,64151.0,4.31384405]
[1719163027146,0.0085,64152.0,64151.0,4.19721419]
[1719163027551,0.0085,64152.0,64151.0,4.21594131]
[1719163028511,0.0085,64152.0,64151.0,4.19721419]
[1719163028867,0.0085,64152.0,64151.0,4.83257819]
[1719163029112,0.0085,64152.0,64151.0,4.83255228]
[1719163029267,0.0085,64152.0,64151.0,4.57328828]
[1719163029476,0.0085,64152.0,64151.0,4.88505121]
[1719163029696,0.148,64161.0,64160.0,2.29102]
[1719163029891,0.148,64161.0,64160.0,2.83940364]
[1719163030252,0.148,64161.0,64160.0,2.85500364]
[1719163030593,0.148,64161.0,64160.0,3.16672364]
[1719163030978,0.148,64161.0,64160.0,3.16687867]
[1719163031244,0.148,64161.0,64160.0,3.18087867]
[1719163031446,0.148,64161.0,64160.0,3.20421338]
[1719163031766,0.2287,64162.0,64161.0,1.822717]
[1719163031876,0.2287,64162.0,64161.0,2.09827812]
[1719163032082,0.2287,64162.0,64161.0,2.37007471]
[1719163033053,0.2287,64162.0,64161.0,2.36227471]
[1719163033207,0.2287,64162.0,64161.0,2.36242974]
[1719163033411,0.2287,64162.0,64161.0,2.36242981]
[1719163034902,0.2287,64162.0,64161.0,2.2469944]
[1719163035101,0.2287,64162.0,64161.0,2.3764264]
[1719163035346,0.148,64163.0,64162.0,1.814895]
[1719163035550,0.3767,64170.0,64169.0,0.847514]
[1719163035745,0.3767,64170.0,64169.0,1.62342712]
[1719163036078,0.3767,64170.0,64169.0,1.85862712]
[1719163036401,0.3767,64170.0,64169.0,1.85878222]
[1719163036607,0.3767,64170.0,64169.0,1.84658214]
[1719163036850,0.3767,64170.0,64169.0,1.85878214]
[1719163037002,0.3767,64170.0,64169.0,1.84658214]
[1719163037411,0.3767,64170.0,64169.0,1.87058214]
[1719163037616,0.3767,64170.0,64169.0,1.87278214]
[1719163037819,0.4292,64170.0,64169.0,1.87058214]
[1719163038057,0.4292,64170.0,64169.0,1.88458214]
[1719163038259,0.3767,64175.0,64174.0,1.190782]
[1719163038462,0.4292,64175.0,64174.0,1.35894312]
[1719163038647,0.4292,64175.0,64174.0,1.37454312]
[1719163039384,0.4292,64175.0,64174.0,1.39754312]
[1719163039591,0.3767,64175.0,64174.0,1.41154312]
[1719163039805,0.4292,64175.0,64174.0,1.40754312]
[1719163040007,0.4292,64175.0,64174.0,1.39769814]
[1719163040321,0.4292,64175.0,64174.0,1.40769814]
[1719163040541,0.4292,64175.0,64174.0,1.42169814]
[1719163041103,0.4292,64175.0,64174.0,1.62389814]
[1719163041104,0.3767,64175.0,64174.0,1.62389814]
[1719163041304,0.3767,64175.0,64174.0,1.63789814]
[1719163041505,0.4292,64175.0,64174.0,1.63789814]
[1719163042262,0.3767,64175.0,64174.0,1.43789814]
[1719163042580,0.3655,64175.0,64174.0,1.63569814]
[1719163042785,0.3655,64175.0,64174.0,1.62569814]
[1719163043263,0.1368,64175.0,64174.0,1.62569814]
[1719163043444,0.02824883,64187.0,64184.0,0.535802]
[1719163043445,0.0085,64187.0,64184.0,0.535802]
[1719163043590,0.0085,64187.0,64184.0,1.31157112]
[1719163043794,0.2372,64185.0,64184.0,1.32157112]
[1719163044081,0.2897,64185.0,64184.0,1.32157112]
[1719163044214,0.2372,64185.0,64184.0,1.32157112]
[1719163044457,0.2897,64185.0,64184.0,1.34472614]
[1719163045132,0.2372,64185.0,64184.0,1.34472614]
[1719163045276,0.2897,64185.0,64184.0,1.36092614]
[1719163045492,0.2372,64185.0,64184.0,1.36092614]
[1719163045831,0.2897,64185.0,64184.0,1.35872614]
[1719163046044,0.0085,64185.0,64184.0,1.87033014]
[1719163046248,0.0085,64185.0,64184.0,1.87253003]
[1719163046425,0.0085,64185.0,64184.0,1.87033003]
[1719163047003,0.0085,64185.0,64184.0,2.07253003]
[1719163047175,0.0085,64185.0,64184.0,2.08653003]
[1719163047371,0.0085,64185.0,64184.0,2.38413403]
[1719163047577,0.0085,64187.0,64186.0,1.191185]
[1719163047871,0.0085,64187.0,64186.0,3.33772699]
[1719163048095,0.0085,64187.0,64186.0,3.05896544]
[1719163048300,0.0085,64187.0,64186.0,2.54023473]
[1719163048502,0.0085,64187.0,64186.0,2.75243473]
[1719163048703,0.0085,64187.0,64186.0,2.75243184]
[1719163048987,0.0085,64187.0,64186.0,2.55258675]
[1719163049193,0.0085,64187.0,64186.0,2.75258675]
[1719163049409,0.0085,64187.0,64186.0,2.68789395]
[1719163050054,0.0085,64187.0,64186.0,2.05257176]
[1719163050270,0.0085,64187.0,64186.0,2.06657193]
[1719163050473,0.0085,64187.0,64186.0,2.00187952]
[1719163050686,0.0085,64187.0,64186.0,1.79967952]
[1719163050908,0.0085,64187.0,64186.0,2.00187952]
[1719163051139,0.0085,64187.0,64186.0,2.01587952]
[1719163051371,0.0085,64187.0,64186.0,1.81587944]
[1719163051598,0.0085,64187.0,64186.0,1.68649495]
[1719163052220,0.0085,64187.0,64186.0,1.88649495]
[1719163052431,0.0085,64187.0,64186.0,1.68429495]
[1719163053268,0.0085,64187.0,64186.0,1.68649495]
[1719163053467,0.0085,64187.0,64186.0,1.68429495]
[1719163054088,0.0078,64197.0,64186.0,1.68429495]
[1719163054301,0.2287,64200.0,64199.0,0.38]
[1719163054302,0.01620752,64200.0,64199.0,0.38]
[1719163054547,0.06870752,64200.0,64199.0,0.53256112]
[1719163055740,0.06870752,64200.0,64199.0,0.53271595]
[1719163056012,0.01620752,64200.0,64199.0,0.53271595]
[1719163056273,0.06870752,64200.0,64199.0,0.53271595]
[1719163057018,0.06870752,64200.0,64199.0,0.54671595]
[1719163057260,0.06870752,64200.0,64199.0,0.56071595]
[1719163057722,0.06870752,64200.0,64199.0,0.62308782]
[1719163059683,0.0163,64205.0,64200.0,0.255763]
[1719163059886,0.1978,64201.0,64200.0,0.28456112]
[1719163060312,0.1978,64201.0,64200.0,0.30016112]
[1719163060960,0.1978,64201.0,64200.0,0.31416112]
[1719163061160,0.1978,64201.0,64200.0,0.32831582]
[1719163062772,0.1978,64201.0,64200.0,0.31431582]
[1719163063231,0.1978,64201.0,64200.0,0.32831582]
[1719163063580,0.1453,64201.0,64200.0,0.31431582]
[1719163063775,0.1978,64201.0,64200.0,0.31431582]
[1719163065143,0.1978,64201.0,64200.0,0.32831582]
[1719163065657,0.1453,64201.0,64200.0,0.32831582]
[1719163065837,0.1978,64201.0,64200.0,0.32831582]
[1719163066690,0.1453,64201.0,64200.0,0.32831582]
[1719163066936,0.1978,64201.0,64200.0,0.32831582]
[1719163067141,0.0163,64205.0,64204.0,0.1]
[1719163067343,0.0688,64205.0,64204.0,0.25256112]
[1719163067509,0.2141,64205.0,64204.0,0.25256112]
[1719163067957,0.2141,64205.0,64204.0,0.25271582]
[1719163068529,0.2141,64205.0,64204.0,0.28071582]
[1719163073500,0.1616,64205.0,64204.0,0.28071582]
[1719163073704,0.2141,64205.0,64204.0,0.28071582]
[1719163074733,0.21495,64205.0,64204.0,0.28071582]
[1719163074932,0.21495,64205.0,64204.0,1.35952282]
[1719163074933,0.00085,64205.0,64204.0,1.35952282]
[1719163075133,0.00085,64205.0,64204.0,2.04678282]
[1719163075338,0.00085,64205.0,64204.0,1.83678282]
[1719163075571,0.00085,64205.0,64204.0,1.97614918]
[1719163075770,0.00085,64205.0,64204.0,1.96614918]